bitfinex/quotes_BTCUSD_20250519
["timestamp","ask_amount","ask_price","bid_price","bid_amount"]
[1747634112092,0.69079121,102910.0,102900.0,0.0265225]
[1747634112304,0.44127873,102910.0,102900.0,0.0275225]
[1747634112539,0.44127873,102910.0,102900.0,0.02309812]
[1747634112768,0.44127873,102910.0,102900.0,0.00820469]
[1747634112971,0.69079121,102910.0,102900.0,0.00820469]
[1747634113201,0.78810061,102910.0,102900.0,0.00820469]
[1747634114568,0.53858813,102910.0,102900.0,0.00820469]
[1747634115536,0.78810061,102910.0,102900.0,0.00820469]
[1747634119613,0.78810061,102910.0,102900.0,0.00720469]
[1747634119782,0.78910061,102910.0,102900.0,0.00620469]
[1747634120003,0.78910061,102910.0,102900.0,9.386e-05]
[1747634120211,0.79010061,102910.0,102900.0,9.386e-05]
[1747634124496,0.76904467,102910.0,102900.0,9.386e-05]
[1747634124699,0.78847883,102910.0,102900.0,9.386e-05]
[1747634127844,1.05253216,102910.0,102900.0,9.386e-05]
[1747634128042,0.80301968,102910.0,102900.0,9.386e-05]
[1747634128632,0.80201968,102910.0,102900.0,9.386e-05]
[1747634129016,0.60861968,102910.0,102900.0,9.386e-05]
[1747634129216,1.00321968,102910.0,102900.0,9.386e-05]
[1747634129455,1.00221968,102910.0,102900.0,9.386e-05]
[1747634129818,1.00621968,102910.0,102900.0,9.386e-05]
[1747634130857,1.59573216,102910.0,102900.0,9.386e-05]
[1747634131090,1.60130778,102910.0,102900.0,9.386e-05]
[1747634132446,1.60134778,102910.0,102900.0,9.386e-05]
[1747634134320,1.3518353,102910.0,102900.0,9.386e-05]
[1747634134676,1.4018353,102910.0,102900.0,9.386e-05]
[1747634134819,1.3518353,102910.0,102900.0,9.386e-05]
[1747634135020,1.60134778,102910.0,102900.0,9.386e-05]
[1747634135693,0.34756635,102910.0,102900.0,9.386e-05]
[1747634135898,0.72882794,102910.0,102900.0,9.386e-05]
[1747634136045,0.63151854,102910.0,102900.0,9.386e-05]
[1747634136255,0.88103102,102910.0,102900.0,9.386e-05]
[1747634136461,0.89753102,102910.0,102900.0,9.386e-05]
[1747634136717,0.99084042,102910.0,102900.0,9.386e-05]
[1747634136918,0.99084042,102910.0,102900.0,0.00621087]
[1747634137192,0.99084042,102910.0,102900.0,0.00721087]
[1747634137369,1.59489375,102910.0,102900.0,0.00721087]
[1747634137552,1.59489375,102910.0,102900.0,0.00621087]
[1747634137737,1.59089375,102910.0,102900.0,0.00621087]
[1747634138100,1.34138127,102910.0,102900.0,0.00721087]
[1747634138309,1.59089375,102910.0,102900.0,0.00721087]
[1747634138518,1.59089375,102910.0,102900.0,0.00621087]
[1747634138723,1.59289375,102910.0,102900.0,0.00621087]
[1747634138928,2.29129375,102910.0,102900.0,0.00621087]
[1747634139101,2.29129375,102910.0,102900.0,9.386e-05]
[1747634139517,2.34329375,102910.0,102900.0,9.386e-05]
[1747634139726,2.34729375,102910.0,102900.0,9.386e-05]
[1747634139937,2.54164375,102910.0,102900.0,9.386e-05]
[1747634141154,2.54721937,102910.0,102900.0,9.386e-05]
[1747634141909,1.84881937,102910.0,102900.0,9.386e-05]
[1747634151395,1.84869937,102910.0,102900.0,9.386e-05]
[1747634152548,1.90702937,102910.0,102900.0,9.386e-05]
[1747634152758,1.84869937,102910.0,102900.0,9.386e-05]
[1747634155482,1.59361127,102910.0,102900.0,9.386e-05]
[1747634155905,1.59365127,102910.0,102900.0,9.386e-05]
[1747634156802,1.39637127,102910.0,102900.0,9.386e-05]
[1747634157229,1.59365127,102910.0,102900.0,9.386e-05]
[1747634157646,1.37987127,102910.0,102900.0,9.386e-05]
[1747634157872,1.59375127,102910.0,102900.0,9.386e-05]
[1747634158081,1.44870375,102910.0,102900.0,9.386e-05]
[1747634158280,1.59375127,102910.0,102900.0,9.386e-05]
[1747634158741,1.39647127,102910.0,102900.0,9.386e-05]
[1747634158957,1.59375127,102910.0,102900.0,9.386e-05]
[1747634159133,1.19919127,102910.0,102900.0,9.386e-05]
[1747634159346,1.57715127,102910.0,102900.0,9.386e-05]
[1747634159817,1.18259127,102910.0,102900.0,9.386e-05]
[1747634160004,1.57715127,102910.0,102900.0,9.386e-05]
[1747634160913,1.59305127,102910.0,102900.0,9.386e-05]
[1747634162574,1.84256375,102910.0,102900.0,9.386e-05]
[1747634162731,1.59305127,102910.0,102900.0,9.386e-05]
[1747634162943,1.84256375,102910.0,102900.0,9.386e-05]
[1747634163545,1.59305127,102910.0,102900.0,9.386e-05]
[1747634166909,1.19849127,102910.0,102900.0,9.386e-05]
[1747634167117,1.59297127,102910.0,102900.0,9.386e-05]
[1747634168977,1.57707127,102910.0,102900.0,9.386e-05]
[1747634169407,1.59367127,102910.0,102900.0,9.386e-05]
[1747634169789,1.57707127,102910.0,102900.0,9.386e-05]
[1747634170373,1.59217127,102910.0,102900.0,9.386e-05]
[1747634172662,1.44720375,102910.0,102900.0,9.386e-05]
[1747634172863,1.84168375,102910.0,102900.0,9.386e-05]
[1747634173962,1.59217127,102910.0,102900.0,9.386e-05]
[1747634174388,1.19769127,102910.0,102900.0,9.386e-05]
[1747634174561,1.59217127,102910.0,102900.0,9.386e-05]
[1747634175727,1.57707127,102910.0,102900.0,9.386e-05]
[1747634175909,1.37983127,102910.0,102900.0,9.386e-05]
[1747634176040,1.57692996,102910.0,102900.0,9.386e-05]
[1747634177148,1.18244996,102910.0,102900.0,9.386e-05]
[1747634177300,1.57692996,102910.0,102900.0,9.386e-05]
[1747634177715,1.59292996,102910.0,102900.0,9.386e-05]
[1747634178289,1.57692996,102910.0,102900.0,9.386e-05]
[1747634179290,1.59222996,102910.0,102900.0,9.386e-05]
[1747634182009,1.57692996,102910.0,102900.0,9.386e-05]
[1747634183604,1.59212996,102910.0,102900.0,9.386e-05]
[1747634184188,1.57692996,102910.0,102900.0,9.386e-05]
[1747634185025,1.59292996,102910.0,102900.0,9.386e-05]
[1747634186193,1.02514911,102910.0,102900.0,9.386e-05]
[1747634186514,1.20739042,102910.0,102900.0,0.01579386]
[1747634186909,1.22389042,102910.0,102900.0,9.386e-05]
[1747634187250,0.97437794,102910.0,102900.0,9.386e-05]
[1747634187455,1.22389042,102910.0,102900.0,9.386e-05]
[1747634188186,1.22389042,102910.0,102900.0,0.00622885]
[1747634189770,1.20739042,102910.0,102900.0,0.02192885]
[1747634189976,0.81295042,102910.0,102900.0,0.02192885]
[1747634190174,1.20735042,102910.0,102900.0,0.02192885]
[1747634190581,1.19935042,102910.0,102900.0,0.02192885]
[1747634191086,1.20335042,102910.0,102900.0,0.02192885]
[1747634191714,1.21925042,102910.0,102900.0,0.00622885]
[1747634191881,1.23525042,102910.0,102900.0,0.00622885]
[1747634192095,1.24979127,102910.0,102900.0,0.00622885]
[1747634193961,1.24979127,102910.0,102900.0,9.386e-05]
[1747634195239,1.25944284,102910.0,102900.0,9.386e-05]
[1747634198894,1.24979127,102910.0,102900.0,9.386e-05]
[1747634205346,0.21381991,102890.0,102880.0,0.02760688]
[1747634205548,0.41093991,102890.0,102880.0,0.02760688]
[1747634206567,0.41093991,102890.0,102880.0,0.03474301]
[1747634206998,0.41093991,102890.0,102880.0,0.03934301]
[1747634207404,0.41093991,102890.0,102880.0,0.04034301]
[1747634208465,0.409791,102890.0,102880.0,0.04034301]
[1747634209038,0.408231,102890.0,102880.0,0.04034301]
[1747634209398,0.408231,102890.0,102880.0,0.25418408]
[1747634209603,0.01943577,102900.0,102890.0,0.23394467]
[1747634209843,0.19444373,102910.0,102900.0,0.01943586]
[1747634210032,0.22359427,102910.0,102900.0,0.2288059]
[1747634210234,0.80238218,102910.0,102900.0,0.02472438]
[1747634210466,0.79266533,102910.0,102900.0,0.02183613]
[1747634210633,1.17098721,102910.0,102900.0,0.00613613]
[1747634211196,1.20448721,102910.0,102900.0,0.00613613]
[1747634211411,0.95497473,102910.0,102900.0,0.02163613]
[1747634211625,0.26587751,102910.0,102900.0,0.25417761]
[1747634211829,0.87381568,102910.0,102900.0,0.24446001]
[1747634212030,0.87381568,102910.0,102900.0,0.2541778]
[1747634212303,0.66975389,102910.0,102900.0,0.26389531]
[1747634212521,0.66003714,102910.0,102900.0,0.26389531]
[1747634212670,0.68147093,102910.0,102900.0,0.26389531]
[1747634213208,0.67947093,102910.0,102900.0,0.26389531]
[1747634213374,0.2561602,102910.0,102900.0,0.26389531]
[1747634213598,0.24644373,102910.0,102900.0,0.26389531]
[1747634213799,0.65995695,102910.0,102900.0,0.26389531]
[1747634214004,0.65795695,102910.0,102900.0,0.26389531]
[1747634214385,0.65795695,102910.0,102900.0,0.26589531]
[1747634214964,0.8717355,102910.0,102900.0,0.2561778]
[1747634215166,0.85230228,102910.0,102900.0,0.02806051]
[1747634215289,0.85230228,102910.0,102900.0,0.03777868]
[1747634215488,0.8328683,102910.0,102900.0,0.03777868]
[1747634216263,0.8328683,102910.0,102900.0,0.24186011]
[1747634216595,0.8328683,102910.0,102900.0,0.24646011]
[1747634216811,0.7828683,102910.0,102900.0,0.24646011]
[1747634217014,0.5858283,102910.0,102900.0,0.24646011]
[1747634217244,0.3887883,102910.0,102900.0,0.24646011]
[1747634217462,0.21387714,102910.0,102900.0,0.26589541]
[1747634217662,0.22359361,102910.0,102900.0,0.60589541]
[1747634218095,0.19444373,102910.0,102900.0,0.60589541]
[1747634218301,0.22359351,102910.0,102900.0,0.70320481]
[1747634218681,0.22359341,102910.0,102900.0,0.70320481]
[1747634218968,0.21387666,102910.0,102900.0,0.70320481]
[1747634219361,0.2041601,102910.0,102900.0,0.70320481]
[1747634219558,0.21387666,102910.0,102900.0,0.70320481]
[1747634219759,0.2041601,102910.0,102900.0,0.70320481]
[1747634220132,0.19444373,102910.0,102900.0,0.70320481]
[1747634220745,0.19444373,102910.0,102900.0,0.71339284]
[1747634229632,0.19444373,102910.0,102900.0,0.70320481]
[1747634230739,9.373e-05,102910.0,102900.0,0.70320481]
[1747634233755,0.20415467,102910.0,102900.0,0.46554553]
[1747634233981,0.20415477,102910.0,102900.0,0.67916941]
[1747634234115,0.22358855,102910.0,102900.0,0.47508808]
[1747634234347,0.21387152,102910.0,102900.0,0.69860509]
[1747634234577,0.20415477,102910.0,102900.0,0.6791696]
[1747634234766,0.22358846,102910.0,102900.0,0.6791696]
[1747634234968,0.23330559,102910.0,102900.0,0.6791696]
[1747634235174,0.21387152,102910.0,102900.0,0.6791696]
[1747634235382,0.21387143,102910.0,102900.0,0.68888739]
[1747634235804,0.22358828,102910.0,102900.0,0.68888748]
[1747634236028,0.21387152,102910.0,102900.0,0.70878513]
[1747634236266,0.21387152,102910.0,102900.0,0.70878522]
[1747634236481,0.21387152,102910.0,102900.0,0.70878513]
[1747634236702,0.21387152,102910.0,102900.0,0.70878522]
[1747634237128,9.373e-05,102910.0,102900.0,0.72310292]
[1747634237527,9.373e-05,102910.0,102900.0,0.93464311]
[1747634238186,9.373e-05,102910.0,102900.0,0.93364311]
[1747634238638,0.01942935,102930.0,102920.0,0.57917339]
[1747634238887,0.00971373,102940.0,102930.0,0.22787635]
[1747634239102,0.7013677,102950.0,102940.0,0.20842661]
[1747634239381,0.01956638,102950.0,102940.0,0.67487786]
[1747634239609,0.00985331,102950.0,102940.0,0.69107786]
[1747634240232,0.019566,102950.0,102940.0,0.69107786]
[1747634240464,0.00014071,102950.0,102940.0,0.69107786]
[1747634240677,0.00014071,102950.0,102940.0,0.71262425]
[1747634241298,0.00014071,102950.0,102940.0,0.70802425]
[1747634241495,0.00114071,102950.0,102940.0,0.70802425]
[1747634242431,0.23133601,102950.0,102940.0,0.13328317]
[1747634242665,0.32441541,102950.0,102940.0,0.03597377]
[1747634242881,0.32441541,102950.0,102940.0,0.37597377]
[1747634243543,0.32441541,102950.0,102940.0,0.38568816]
[1747634244648,0.32441541,102950.0,102940.0,0.57997609]
[1747634244870,0.24663601,102950.0,102940.0,0.57997609]
[1747634245081,0.24663601,102950.0,102940.0,0.5994044]
[1747634245311,0.0273534,102950.0,102940.0,0.6967138]
[1747634245526,0.00114071,102950.0,102940.0,0.70642753]
[1747634245725,0.00114071,102950.0,102940.0,0.72242753]
[1747634246713,0.0108535,102950.0,102940.0,0.70642753]
[1747634247165,0.0108534,102950.0,102940.0,0.70642753]
[1747634248435,0.0108534,102950.0,102940.0,0.7166093]
[1747634248644,0.00114071,102950.0,102940.0,0.7166093]
[1747634249050,0.00114071,102950.0,102940.0,0.7324093]
[1747634250494,0.00114071,102950.0,102940.0,0.7166093]
[1747634252073,0.00114071,102950.0,102940.0,0.70642753]
[1747634252896,0.03716619,102950.0,102940.0,0.70642753]
[1747634253115,0.02745331,102950.0,102940.0,0.70642753]
[1747634253327,0.037166,102950.0,102940.0,0.70642753]
[1747634253540,0.04687888,102950.0,102940.0,0.70642753]
[1747634253774,0.037166,102950.0,102940.0,0.70642753]
[1747634254494,0.05659186,102950.0,102940.0,0.70200315]
[1747634254964,0.05659186,102950.0,102940.0,0.70642753]
[1747634255190,0.04687879,102950.0,102940.0,0.70642753]
[1747634255675,0.04687879,102950.0,102940.0,0.70142753]
[1747634255844,0.037166,102950.0,102940.0,0.70142753]
[1747634256043,0.26656158,102950.0,102940.0,0.6917138]
[1747634256283,0.2471361,102950.0,102940.0,0.24469029]
[1747634256467,0.2471361,102950.0,102940.0,0.26411822]
[1747634256761,0.2471361,102950.0,102940.0,0.60411822]
[1747634256967,0.2471361,102950.0,102940.0,0.37097377]
[1747634257140,0.2471361,102950.0,102940.0,0.5846902]
[1747634259092,0.2471361,102950.0,102940.0,0.59487592]
[1747634260798,0.2471361,102950.0,102940.0,0.60458984]
[1747634261009,0.06258039,102950.0,102940.0,0.61430367]
[1747634261233,0.0274535,102950.0,102940.0,0.61430367]
[1747634261442,0.0274535,102950.0,102940.0,0.7213268]
[1747634261750,0.03716638,102950.0,102940.0,0.7213268]
[1747634262273,0.24673638,102950.0,102940.0,0.38115949]
[1747634262478,0.23702312,102950.0,102940.0,0.38115949]
[1747634262920,0.05246704,102950.0,102940.0,0.60458946]
[1747634263386,0.07189318,102950.0,102940.0,0.60458946]
[1747634263592,0.07189318,102950.0,102940.0,0.59487573]
[1747634263593,0.26616224,102950.0,102940.0,0.59487573]
[1747634263808,0.25881983,102950.0,102940.0,0.60458946]
[1747634267599,0.2393535,102950.0,102940.0,0.60458946]
[1747634267845,0.24906648,102950.0,102940.0,0.60458946]
[1747634270465,0.2393535,102950.0,102940.0,0.60458946]
[1747634270670,0.24906648,102950.0,102940.0,0.60458946]
[1747634271230,0.0427535,102950.0,102940.0,0.60458946]
[1747634272083,0.01774071,102950.0,102940.0,0.70189886]
[1747634272299,0.02745331,102950.0,102940.0,0.70189886]
[1747634272722,0.01774071,102950.0,102940.0,0.70189886]
[1747634272927,0.00114071,102950.0,102940.0,0.70189886]
[1747634273132,0.00114071,102950.0,102940.0,0.71719886]
[1747634273341,0.00114071,102950.0,102940.0,0.73633971]
[1747634273557,0.00114071,102950.0,102940.0,0.7635957]
[1747634273773,0.23258171,102970.0,102960.0,0.22781095]
[1747634273985,1.12399807,102980.0,102970.0,0.22778925]
[1747634273986,0.06093063,102980.0,102970.0,0.22778925]
[1747634274181,0.04563063,102980.0,102970.0,0.23392538]
[1747634274420,0.05534115,102980.0,102970.0,0.23392538]
[1747634274629,0.06505177,102980.0,102970.0,0.23392538]
[1747634274972,0.02620996,102980.0,102970.0,0.23392538]
[1747634275159,0.02620986,102980.0,102970.0,0.57392538]
[1747634275362,0.02620986,102980.0,102970.0,0.58413529]
[1747634275620,0.0175,102980.0,102970.0,0.58413529]
[1747634276614,0.0175,102980.0,102970.0,0.68144469]
[1747634276817,0.03576011,102980.0,102970.0,0.58413529]
[1747634276993,0.05366011,102980.0,102970.0,0.58413529]
[1747634277438,0.04394996,102980.0,102970.0,0.58413529]
[1747634277669,0.05366011,102980.0,102970.0,0.58413529]
[1747634278034,0.01834,102980.0,102970.0,0.58413529]
[1747634278464,0.01834,102980.0,102970.0,0.68144469]
[1747634278663,0.003,102980.0,102970.0,0.69664469]
[1747634279858,0.003,102980.0,102970.0,0.68144469]
[1747634280616,0.02840986,102980.0,102970.0,0.68144469]
[1747634280824,0.25854281,102980.0,102970.0,0.64788676]
[1747634281065,0.07404087,102980.0,102970.0,0.68144498]
[1747634281213,0.07404078,102980.0,102970.0,0.69115588]
[1747634281423,0.06433035,102980.0,102970.0,0.69115588]
[1747634282011,0.02840986,102980.0,102970.0,0.69115588]
[1747634282215,0.02840977,102980.0,102970.0,0.69115588]
[1747634283705,0.24743304,102980.0,102970.0,0.65231114]
[1747634283910,0.23772289,102980.0,102970.0,0.36077042]
[1747634284092,0.42449246,102980.0,102970.0,0.02077042]
[1747634285186,0.42449246,102980.0,102970.0,0.23442439]
[1747634285383,0.42445246,102980.0,102970.0,0.23442439]
[1747634285729,0.25937063,102980.0,102970.0,0.24413529]
[1747634286086,0.26908191,102980.0,102970.0,0.24413529]
[1747634286254,0.46329437,102980.0,102970.0,0.23442439]
[1747634286855,0.26908191,102980.0,102970.0,0.24413539]
[1747634287058,0.26908191,102980.0,102970.0,0.23392548]
[1747634289819,0.46329437,102980.0,102970.0,0.23392548]
[1747634291850,0.46329437,102980.0,102970.0,0.22421448]
[1747634292735,0.45358403,102980.0,102970.0,0.22421448]
[1747634292941,0.40358403,102980.0,102970.0,0.2145033]
[1747634293138,0.3938736,102980.0,102970.0,0.22421467]
[1747634293384,0.3938736,102980.0,102970.0,0.23392595]
[1747634293632,0.18995015,102980.0,102970.0,0.23392595]
[1747634293841,0.19966058,102980.0,102970.0,0.25334803]
[1747634294054,0.2093711,102980.0,102970.0,0.25334803]
[1747634294274,0.22879158,102980.0,102970.0,0.24363713]
[1747634294451,0.41329418,102980.0,102970.0,0.25334822]
[1747634295562,0.41329418,102980.0,102970.0,0.26098298]
[1747634296206,0.20622939,102990.0,102980.0,0.00442438]
[1747634296412,0.63268614,102990.0,102980.0,0.2180576]
[1747634296614,0.46237572,102990.0,102980.0,0.22776765]
[1747634297186,0.46237572,102990.0,102980.0,0.23390378]
[1747634297733,0.46437572,102990.0,102980.0,0.23390378]
[1747634297937,0.46737572,102990.0,102980.0,0.23390378]
[1747634298355,0.46737572,102990.0,102980.0,0.24153854]
[1747634298569,0.05057253,102990.0,102980.0,0.5912485]
[1747634298718,0.24693253,102990.0,102980.0,0.5912485]
[1747634298913,0.02144473,102990.0,102980.0,0.5912485]
[1747634299113,0.03115356,102990.0,102980.0,0.5912485]
[1747634299325,0.00514473,102990.0,102980.0,0.6070485]
[1747634300013,0.00314473,102990.0,102980.0,0.7043579]
[1747634300502,0.00114473,102990.0,102980.0,0.7043579]
[1747634300953,0.01185356,102990.0,102980.0,0.7053579]
[1747634301358,0.01085356,102990.0,102980.0,0.7053579]
[1747634301845,0.00114473,102990.0,102980.0,0.7053579]
[1747634302624,0.00114473,102990.0,102980.0,0.70793305]
[1747634303968,0.00114473,102990.0,102980.0,0.72413305]
[1747634304558,0.00114473,102990.0,102980.0,0.70793305]
[1747634306405,0.00114473,102990.0,102980.0,0.69772314]
[1747634307292,0.00114473,102990.0,102980.0,0.68192314]
[1747634307546,0.01754473,102990.0,102980.0,0.68192314]
[1747634307963,0.02725356,102990.0,102980.0,0.68192314]
[1747634308166,0.07238146,102990.0,102980.0,0.68192314]
[1747634308386,0.07238146,102990.0,102980.0,0.01156051]
[1747634308387,0.24715713,102990.0,102980.0,0.01156051]
[1747634308825,0.23744783,102990.0,102980.0,0.02127113]
[1747634309652,0.23744783,102990.0,102980.0,0.02891737]
[1747634310045,0.23744783,102990.0,102980.0,0.23284035]
[1747634310376,0.23744783,102990.0,102980.0,0.01920675]
[1747634310584,0.22773834,102990.0,102980.0,0.01920675]
[1747634310789,0.67357082,102990.0,102980.0,0.01478237]
[1747634311610,0.67257082,102990.0,102980.0,0.01378237]
[1747634312041,0.67457082,102990.0,102980.0,0.01378237]
[1747634312274,0.42505834,102990.0,102980.0,0.01378237]
[1747634312488,0.52236774,102990.0,102980.0,0.01378237]
[1747634313117,0.52236774,102990.0,102980.0,0.00613613]
[1747634318111,0.71856774,102990.0,102980.0,0.00613613]
[1747634331234,0.32604774,102990.0,102980.0,0.00613613]
[1747634331431,0.71816774,102990.0,102980.0,0.00613613]
[1747634331834,0.71812774,102990.0,102980.0,0.00613613]
[1747634336644,0.01185393,102990.0,102980.0,0.25050369]
[1747634336855,0.05069141,102990.0,102980.0,0.25050369]
[1747634338546,0.2351761,102990.0,102980.0,0.25050388]
[1747634338775,0.02156323,102990.0,102980.0,0.27805548]
[1747634339007,0.0409823,102990.0,102980.0,0.27805548]
[1747634339217,0.02156285,102990.0,102980.0,0.63465548]
[1747634339849,0.01185356,102990.0,102980.0,0.63465548]
[1747634340645,0.00214473,102990.0,102980.0,0.63465548]
[1747634340846,0.02156276,102990.0,102980.0,0.63465548]
[1747634341971,0.02156276,102990.0,102980.0,0.62700924]
[1747634342311,0.01185375,102990.0,102980.0,0.62700924]
[1747634343610,0.00214473,102990.0,102980.0,0.62700924]
[1747634343819,0.00214473,102990.0,102980.0,0.72431864]
[1747634344652,0.00214473,102990.0,102980.0,0.93489949]
[1747634344865,0.00214473,102990.0,102980.0,0.96207812]
[1747634345076,0.01941407,103010.0,103000.0,0.5841242]
[1747634345336,0.02960361,103010.0,103000.0,0.5841242]
[1747634345548,0.03931102,103010.0,103000.0,0.59026033]
[1747634345750,0.02960361,103010.0,103000.0,0.59026033]
[1747634345959,0.02960361,103010.0,103000.0,0.61494075]
[1747634345960,0.01989639,103010.0,103000.0,0.61494075]
[1747634346159,0.01989639,103010.0,103000.0,0.63134075]
[1747634346399,0.00048232,103010.0,103000.0,0.63134075]
[1747634346609,0.01018936,103010.0,103000.0,0.63134075]
[1747634347033,0.00048232,103010.0,103000.0,0.72965015]
[1747634347237,0.01018926,103010.0,103000.0,0.72965015]
[1747634347446,0.01018926,103010.0,103000.0,0.74744582]
[1747634348223,0.00048232,103010.0,103000.0,0.74744582]
[1747634348426,0.01018936,103010.0,103000.0,0.74744582]
[1747634348622,0.00048232,103010.0,103000.0,0.74744582]
[1747634349000,0.01018926,103010.0,103000.0,0.74744582]
[1747634349241,0.00048232,103010.0,103000.0,0.74744582]
[1747634349441,0.01018926,103010.0,103000.0,0.74744582]
[1747634349643,0.01018926,103010.0,103000.0,0.73981928]
[1747634351015,0.01018926,103010.0,103000.0,0.60000181]
[1747634351016,0.2334673,103010.0,103000.0,0.60000181]
[1747634351237,0.24605323,103010.0,103000.0,0.37155477]
[1747634351867,0.24605323,103010.0,103000.0,0.57543806]
[1747634352076,0.23055323,103010.0,103000.0,0.59485487]
[1747634352259,0.23055323,103010.0,103000.0,0.60456294]
[1747634352260,0.03639686,103010.0,103000.0,0.60456294]
[1747634352681,0.03639686,103010.0,103000.0,0.62096294]
[1747634352895,0.04610437,103010.0,103000.0,0.61079381]
[1747634353026,0.05581197,103010.0,103000.0,0.59439381]
[1747634353236,0.24605352,103010.0,103000.0,0.36138564]
[1747634354263,0.24605352,103010.0,103000.0,0.37109437]
[1747634354961,0.24605352,103010.0,103000.0,0.36138564]
[1747634355171,0.24605352,103010.0,103000.0,0.38572811]
[1747634355353,0.24605352,103010.0,103000.0,0.57990286]
[1747634355750,0.24605352,103010.0,103000.0,0.5896115]
[1747634357173,0.24605352,103010.0,103000.0,0.38572811]
[1747634357365,0.23634592,103010.0,103000.0,0.38572811]
[1747634357916,0.23634592,103010.0,103000.0,0.5896115]
[1747634358162,0.23634592,103010.0,103000.0,0.59932004]
[1747634358417,0.23634592,103010.0,103000.0,0.60902849]
[1747634361082,0.23634592,103010.0,103000.0,0.35696126]
[1747634361291,0.23634592,103010.0,103000.0,0.36138564]
[1747634361437,0.23634592,103010.0,103000.0,0.35696126]
[1747634363554,0.23634592,103010.0,103000.0,0.36666999]
[1747634365007,0.23634592,103010.0,103000.0,0.37428425]
[1747634367560,0.23634592,103010.0,103000.0,0.02457552]
[1747634367882,0.23634592,103010.0,103000.0,0.03428425]
[1747634369114,0.02668973,103010.0,103000.0,0.25230037]
[1747634369324,0.24996806,103010.0,103000.0,0.25230037]
[1747634369534,0.24996806,103010.0,103000.0,0.26200863]
[1747634370966,0.05581216,103010.0,103000.0,0.2717167]
[1747634371590,0.05581216,103010.0,103000.0,0.26200863]
[1747634371816,0.24996806,103010.0,103000.0,0.25230037]
[1747634372225,0.24996806,103010.0,103000.0,0.26200873]
[1747634373136,0.04610437,103010.0,103000.0,0.28599704]
[1747634373344,0.04901986,103010.0,103000.0,0.30099704]
[1747634373548,0.03931273,103010.0,103000.0,0.29128897]
[1747634373747,0.03931273,103010.0,103000.0,0.30099723]
[1747634374676,0.03931273,103010.0,103000.0,0.28599723]
[1747634374882,0.24956863,103010.0,103000.0,0.28599723]
[1747634375061,0.23986122,103010.0,103000.0,0.28599723]
[1747634375502,0.23986122,103010.0,103000.0,0.30229723]
[1747634375747,0.01989648,103010.0,103000.0,0.30229657]
[1747634375942,0.01018926,103010.0,103000.0,0.30229657]
[1747634376123,0.01018926,103010.0,103000.0,0.30485144]
[1747634376322,0.02960362,103010.0,103000.0,0.30485144]
[1747634377362,0.02960362,103010.0,103000.0,0.64485144]
[1747634378686,0.02960362,103010.0,103000.0,0.63502631]
[1747634379287,0.02960362,103010.0,103000.0,0.62485718]
[1747634379728,0.0198963,103010.0,103000.0,0.62485718]
[1747634379943,0.02960352,103010.0,103000.0,0.62485718]
[1747634380127,0.02960343,103010.0,103000.0,0.62485718]
[1747634380354,0.03931065,103010.0,103000.0,0.62485718]
[1747634380998,0.02960343,103010.0,103000.0,0.62485718]
[1747634381394,0.0198963,103010.0,103000.0,0.62485718]
[1747634381628,0.02960352,103010.0,103000.0,0.62485718]
[1747634381836,0.01018926,103010.0,103000.0,0.72216658]
[1747634382023,0.01018926,103010.0,103000.0,0.73836658]
[1747634382206,0.01989639,103010.0,103000.0,0.73836658]
[1747634383338,0.01989639,103010.0,103000.0,0.72216658]
[1747634384302,0.00048232,103010.0,103000.0,0.73866658]
[1747634385288,0.01018926,103010.0,103000.0,0.73866658]
[1747634385682,0.01018926,103010.0,103000.0,0.72216658]
[1747634385931,0.04480352,103010.0,103000.0,0.70586658]
[1747634386359,0.05451093,103010.0,103000.0,0.70586658]
[1747634386573,0.04480362,103010.0,103000.0,0.72116658]
[1747634387839,0.04480362,103010.0,103000.0,0.75029158]
[1747634388728,0.04480362,103010.0,103000.0,0.73499158]
[1747634389882,0.02960352,103010.0,103000.0,0.73499158]
[1747634390094,0.02960352,103010.0,103000.0,0.75149158]
[1747634390512,0.02960352,103010.0,103000.0,0.65418218]
[1747634390513,0.03931084,103010.0,103000.0,0.65418218]
[1747634390734,0.06511835,103010.0,103000.0,0.63768218]
[1747634390909,0.06511835,103010.0,103000.0,0.60855718]
[1747634391138,0.05541084,103010.0,103000.0,0.60855718]
[1747634391842,0.06511835,103010.0,103000.0,0.60855718]
[1747634392237,0.0198963,103010.0,103000.0,0.60855718]
[1747634392419,0.02960352,103010.0,103000.0,0.62495718]
[1747634393417,0.03931093,103010.0,103000.0,0.62495718]
[1747634393852,0.01018926,103010.0,103000.0,0.72226658]
[1747634394045,0.01989639,103010.0,103000.0,0.72226658]
[1747634395182,0.0296038,103010.0,103000.0,0.72226658]
[1747634395387,0.0456038,103010.0,103000.0,0.72226658]
[1747634396554,0.0456038,103010.0,103000.0,0.75139158]
[1747634396965,0.03589639,103010.0,103000.0,0.75139158]
[1747634397170,0.0198963,103010.0,103000.0,0.75139158]
[1747634397946,0.60491306,103010.0,103000.0,0.02584075]
[1747634398164,0.50714246,103010.0,103000.0,0.00713613]
[1747634398425,0.89722246,103010.0,103000.0,0.00713613]
[1747634399267,0.73404254,103010.0,103000.0,0.00713613]
[1747634399493,0.24665314,103010.0,103000.0,0.01684477]
[1747634399714,0.63673314,103010.0,103000.0,0.22515244]
[1747634400123,0.63673314,103010.0,103000.0,0.21238533]
[1747634400329,0.24765314,103010.0,103000.0,0.01821058]
[1747634400537,0.43290582,103010.0,103000.0,0.0137862]
[1747634400946,0.43390582,103010.0,103000.0,0.0137862]
[1747634401914,0.69439514,103010.0,103000.0,0.0137862]
[1747634402803,0.69439514,103010.0,103000.0,0.00613613]
[1747634403760,0.78001005,103010.0,103000.0,0.00613613]
[1747634406892,0.19419106,103000.0,102990.0,0.00970958]
[1747634407024,0.21009106,103000.0,102990.0,0.00442438]
[1747634407232,0.20390329,102990.0,102980.0,0.37295058]
[1747634407435,0.48449812,102990.0,102980.0,0.01785058]
[1747634407643,0.58180752,102990.0,102980.0,0.01785058]
[1747634408058,0.33301269,102990.0,102980.0,0.01785058]
[1747634408262,0.58180752,102990.0,102980.0,0.01785058]
[1747634408718,0.58180752,102990.0,102980.0,0.0081081]
[1747634408864,0.58180752,102990.0,102980.0,0.0061081]
[1747634409302,1.67020752,102990.0,102980.0,0.0071081]
[1747634409717,0.23562289,102980.0,102970.0,0.00765007]
[1747634409951,0.87437772,102980.0,102970.0,0.00765007]
[1747634410434,0.97168712,102980.0,102970.0,0.00765007]
[1747634411241,0.22338629,102960.0,102950.0,0.56576906]
[1747634411589,0.42529454,102960.0,102950.0,0.56576906]
[1747634412407,0.40587019,102960.0,102950.0,0.35817228]
[1747634412559,0.61651019,102960.0,102950.0,0.35389263]
[1747634412765,0.61651019,102960.0,102950.0,0.36131701]
[1747634413165,0.61651019,102960.0,102950.0,0.36431701]
[1747634413430,0.61343019,102960.0,102950.0,0.37403046]
[1747634413725,0.41617241,102960.0,102950.0,0.58772557]
[1747634413928,0.62984723,102960.0,102950.0,0.57501269]
[1747634414128,0.62984723,102960.0,102950.0,0.5683628]
[1747634414798,0.6365351,102960.0,102950.0,0.35024256]
[1747634415021,0.98263933,102960.0,102950.0,0.01024256]
[1747634415475,0.98263933,102960.0,102950.0,0.00114473]
[1747634416021,0.98363933,102960.0,102950.0,0.00014473]
[1747634417510,0.0175,102960.0,102950.0,0.00014473]
[1747634417692,0.1958,102960.0,102950.0,0.24317738]